[Event "December 19 Early 2023"]
[Site "https://www.chess.com"]
[Date "2023.12.19"]
[Round "9"]
[White "Caruana, Fabiano"]
[Black "Asish Panda"]
[Result "1-0"]
[Board "37"]
[TimeControl "180+1"]
[WhiteFideId "2020009"]
[BlackFideId "45012458"]
[WhiteElo "2815"]
[BlackElo "1767"]
[WhiteTeam "USA"]
[BlackTeam "IND"]
[WhiteClock "0:00:03"]
[BlackClock "0:00:00"]

1. e3 {[%clk 0:03:00]}  d5 {[%clk 0:02:58]} 2. b3 {[%clk 0:02:57]}  Nf6 {[%clk 0:02:58]} 3. Bb2 {[%clk 0:02:57]}  e6 {[%clk 0:02:59]} 4. Nf3 {[%clk 0:02:57]}  Be7 {[%clk 0:02:59]} 5. c4 {[%clk 0:02:55]}  O-O {[%clk 0:02:59]} 6. Be2 {[%clk 0:02:55]}  c5 {[%clk 0:02:58]} 7. O-O {[%clk 0:02:55]}  Nc6 {[%clk 0:02:56]} 8. cxd5 {[%clk 0:02:55]}  Nxd5 {[%clk 0:02:55]} 9. Nc3 {[%clk 0:02:56]}  Bf6 {[%clk 0:02:53]} 10. Rc1 {[%clk 0:02:56]}  Ndb4 {[%clk 0:02:31]} 11. a3 {[%clk 0:02:48]}  Nd3 {[%clk 0:02:23]} 12. Bxd3 {[%clk 0:02:48]}  Qxd3 {[%clk 0:02:23]} 13. Na4 {[%clk 0:02:49]}  b6 {[%clk 0:02:09]} 14. Bxf6 {[%clk 0:02:46]}  gxf6 {[%clk 0:02:06]} 15. Nb2 {[%clk 0:02:46]}  Qd7 {[%clk 0:01:58]} 16. d3 {[%clk 0:02:38]}  Ba6 {[%clk 0:01:56]} 17. Qc2 {[%clk 0:02:36]}  Rad8 {[%clk 0:01:54]} 18. Rfd1 {[%clk 0:02:36]}  Ne5 {[%clk 0:01:53]} 19. Nxe5 {[%clk 0:02:35]}  fxe5 {[%clk 0:01:53]} 20. Nc4 {[%clk 0:02:34]}  Bxc4 {[%clk 0:01:52]} 21. bxc4 {[%clk 0:02:24]}  Qe7 {[%clk 0:01:45]} 22. a4 {[%clk 0:02:21]}  Rd6 {[%clk 0:01:43]} 23. a5 {[%clk 0:02:21]}  Rfd8 {[%clk 0:01:42]} 24. axb6 {[%clk 0:02:20]}  axb6 {[%clk 0:01:42]} 25. h3 {[%clk 0:02:18]}  Qd7 {[%clk 0:01:38]} 26. Rb1 {[%clk 0:01:30]}  Rxd3 {[%clk 0:01:28]} 27. Rxd3 {[%clk 0:01:29]}  Qxd3 {[%clk 0:01:29]} 28. Qb2 {[%clk 0:01:29]}  Qxc4 {[%clk 0:01:19]} 29. Qxe5 {[%clk 0:01:27]}  Qd5 {[%clk 0:01:11]} 30. Qf6 {[%clk 0:01:09]}  Qd6 {[%clk 0:00:54]} 31. e4 {[%clk 0:01:00]}  e5 {[%clk 0:00:45]} 32. Rxb6 {[%clk 0:00:50]}  Qxf6 {[%clk 0:00:39]} 33. Rxf6 {[%clk 0:00:51]}  Rc8 {[%clk 0:00:33]} 34. Kf1 {[%clk 0:00:51]}  c4 {[%clk 0:00:33]} 35. Ke2 {[%clk 0:00:52]}  Kg7 {[%clk 0:00:26]} 36. Rf3 {[%clk 0:00:46]}  f6 {[%clk 0:00:25]} 37. Kd2 {[%clk 0:00:44]}  Rd8+ {[%clk 0:00:23]} 38. Kc3 {[%clk 0:00:44]}  Rd4 {[%clk 0:00:23]} 39. Re3 {[%clk 0:00:42]}  h5 {[%clk 0:00:22]} 40. h4 {[%clk 0:00:37]}  Kf7 {[%clk 0:00:20]} 41. Re2 {[%clk 0:00:31]}  Ke6 {[%clk 0:00:19]} 42. f3 {[%clk 0:00:27]}  Kd6 {[%clk 0:00:15]} 43. Ra2 {[%clk 0:00:25]}  Kc5 {[%clk 0:00:16]} 44. Ra5+ {[%clk 0:00:25]}  Kb6 {[%clk 0:00:15]} 45. Ra8 {[%clk 0:00:24]}  Kc5 {[%clk 0:00:13]} 46. Rc8+ {[%clk 0:00:16]}  Kb5 {[%clk 0:00:13]} 47. Rf8 {[%clk 0:00:15]}  Rd3+ {[%clk 0:00:12]} 48. Kc2 {[%clk 0:00:15]}  Re3 {[%clk 0:00:12]} 49. Rxf6 {[%clk 0:00:15]}  Re2+ {[%clk 0:00:12]} 50. Kc3 {[%clk 0:00:16]}  Re3+ {[%clk 0:00:11]} 51. Kd2 {[%clk 0:00:15]}  Ra3 {[%clk 0:00:10]} 52. Re6 {[%clk 0:00:12]}  Ra2+ {[%clk 0:00:07]} 53. Kc3 {[%clk 0:00:11]}  Ra3+ {[%clk 0:00:05]} 54. Kb2 {[%clk 0:00:11]}  Re3 {[%clk 0:00:05]} 55. Kc2 {[%clk 0:00:10]}  Kb4 {[%clk 0:00:04]} 56. Rxe5 {[%clk 0:00:09]}  Re2+ {[%clk 0:00:04]} 57. Kd1 {[%clk 0:00:10]}  Rxg2 {[%clk 0:00:05]} 58. Rxh5 {[%clk 0:00:10]}  Kc3 {[%clk 0:00:03]} 59. Rd5 {[%clk 0:00:04]}  Kb3 {[%clk 0:00:03]} 60. Rb5+ {[%clk 0:00:04]}  Kc3 {[%clk 0:00:03]} 61. e5 {[%clk 0:00:05]}  Kd3 {[%clk 0:00:01]} 62. Rd5+ {[%clk 0:00:04]}  Ke3 {[%clk 0:00:02]} 63. e6 {[%clk 0:00:05]}  c3 {[%clk 0:00:03]} 64. e7 {[%clk 0:00:04]}  Rg8 {[%clk 0:00:00]} 65. Rd8 {[%clk 0:00:03]} 1-0

[Event "December 19 Early 2023"]
[Site "https://www.chess.com"]
[Date "2023.12.19"]
[Round "9"]
[White "Golubev, Mikhail"]
[Black "Tari, Aryan"]
[Result "0-1"]
[Board "39"]
[TimeControl "180+1"]
[WhiteFideId "14100983"]
[BlackFideId "1510045"]
[WhiteElo "2352"]
[BlackElo "2577"]
[WhiteTeam "UKR"]
[BlackTeam "NOR"]
[WhiteClock "0:00:00"]
[BlackClock "0:00:19"]

1. e4 {[%clk 0:02:37]}  e5 {[%clk 0:02:58]} 2. Nf3 {[%clk 0:02:38]}  Nc6 {[%clk 0:02:58]} 3. Bc4 {[%clk 0:02:38]}  Nf6 {[%clk 0:02:58]} 4. Ng5 {[%clk 0:02:38]}  d5 {[%clk 0:02:57]} 5. exd5 {[%clk 0:02:39]}  Na5 {[%clk 0:02:58]} 6. Bb5+ {[%clk 0:02:39]}  c6 {[%clk 0:02:58]} 7. dxc6 {[%clk 0:02:39]}  bxc6 {[%clk 0:02:59]} 8. Bd3 {[%clk 0:02:39]}  Nd5 {[%clk 0:02:55]} 9. Nf3 {[%clk 0:02:38]}  Bd6 {[%clk 0:02:54]} 10. O-O {[%clk 0:02:38]}  Nf4 {[%clk 0:02:55]} 11. Re1 {[%clk 0:02:35]}  Nxd3 {[%clk 0:02:55]} 12. cxd3 {[%clk 0:02:36]}  O-O {[%clk 0:02:54]} 13. Nc3 {[%clk 0:02:33]}  c5 {[%clk 0:02:41]} 14. b3 {[%clk 0:02:31]}  Re8 {[%clk 0:02:17]} 15. Ne4 {[%clk 0:02:23]}  Bf8 {[%clk 0:02:13]} 16. Ba3 {[%clk 0:02:19]}  Nb7 {[%clk 0:02:14]} 17. Rc1 {[%clk 0:02:16]}  Qa5 {[%clk 0:02:13]} 18. Bb2 {[%clk 0:02:12]}  f6 {[%clk 0:01:50]} 19. d4 {[%clk 0:01:57]}  cxd4 {[%clk 0:01:25]} 20. Nxd4 {[%clk 0:01:56]}  Bd7 {[%clk 0:01:13]} 21. Nc6 {[%clk 0:01:47]}  Qa6 {[%clk 0:00:57]} 22. Qf3 {[%clk 0:01:12]}  Rac8 {[%clk 0:00:39]} 23. Nb8 {[%clk 0:00:22]}  Rxb8 {[%clk 0:00:36]} 24. Rc7 {[%clk 0:00:21]}  Red8 {[%clk 0:00:29]} 25. Bxe5 {[%clk 0:00:07]}  fxe5 {[%clk 0:00:24]} 26. Ng5 {[%clk 0:00:00]}  Be8 {[%clk 0:00:19]} 0-1

[Event "December 19 Early 2023"]
[Site "https://www.chess.com"]
[Date "2023.12.19"]
[Round "9"]
[White "Livaic, Leon"]
[Black "Jakubowski, Krzysztof"]
[Result "0-1"]
[Board "40"]
[TimeControl "180+1"]
[WhiteFideId "14531534"]
[BlackFideId "1112848"]
[WhiteElo "2541"]
[BlackElo "2369"]
[WhiteTeam "CRO"]
[BlackTeam "POL"]
[WhiteClock "0:00:00"]
[BlackClock "0:00:04"]

1. d4 {[%clk 0:03:00]}  Nf6 {[%clk 0:02:56]} 2. c4 {[%clk 0:03:01]}  e6 {[%clk 0:02:55]} 3. Nf3 {[%clk 0:03:00]}  b6 {[%clk 0:02:52]} 4. Bf4 {[%clk 0:03:00]}  Bb7 {[%clk 0:02:50]} 5. e3 {[%clk 0:03:01]}  Bb4+ {[%clk 0:02:48]} 6. Nfd2 {[%clk 0:03:00]}  O-O {[%clk 0:02:44]} 7. a3 {[%clk 0:03:00]}  Bxd2+ {[%clk 0:02:43]} 8. Qxd2 {[%clk 0:03:01]}  d5 {[%clk 0:02:41]} 9. cxd5 {[%clk 0:02:55]}  Nxd5 {[%clk 0:02:26]} 10. Bg3 {[%clk 0:02:54]}  Nd7 {[%clk 0:02:23]} 11. Nc3 {[%clk 0:02:39]}  c5 {[%clk 0:02:16]} 12. Bd6 {[%clk 0:02:22]}  Re8 {[%clk 0:02:13]} 13. dxc5 {[%clk 0:02:19]}  Nxc5 {[%clk 0:02:02]} 14. Bxc5 {[%clk 0:02:19]}  bxc5 {[%clk 0:02:03]} 15. Bb5 {[%clk 0:02:19]}  Re7 {[%clk 0:01:58]} 16. O-O {[%clk 0:02:07]}  Qb6 {[%clk 0:01:58]} 17. Be2 {[%clk 0:02:01]}  Rd8 {[%clk 0:01:56]} 18. Qc2 {[%clk 0:01:58]}  Nxc3 {[%clk 0:01:50]} 19. Qxc3 {[%clk 0:01:57]}  Red7 {[%clk 0:01:45]} 20. Rfd1 {[%clk 0:01:55]}  Qc6 {[%clk 0:01:32]} 21. f3 {[%clk 0:01:53]}  h5 {[%clk 0:01:23]} 22. h4 {[%clk 0:01:49]}  Ba6 {[%clk 0:01:19]} 23. Rxd7 {[%clk 0:01:44]}  Rxd7 {[%clk 0:01:18]} 24. Bxa6 {[%clk 0:01:28]}  Qxa6 {[%clk 0:01:18]} 25. Qxc5 {[%clk 0:01:26]}  Rd5 {[%clk 0:01:18]} 26. Qc2 {[%clk 0:01:22]}  Qd6 {[%clk 0:01:13]} 27. Rc1 {[%clk 0:01:11]}  Rd2 {[%clk 0:01:09]} 28. Qe4 {[%clk 0:00:44]}  g6 {[%clk 0:00:47]} 29. b4 {[%clk 0:00:38]}  Qg3 {[%clk 0:00:41]} 30. f4 {[%clk 0:00:29]}  Qf2+ {[%clk 0:00:38]} 31. Kh1 {[%clk 0:00:29]}  Qxh4+ {[%clk 0:00:38]} 32. Kg1 {[%clk 0:00:30]}  Qf2+ {[%clk 0:00:35]} 33. Kh1 {[%clk 0:00:30]}  h4 {[%clk 0:00:28]} 34. Qf3 {[%clk 0:00:28]}  Qxf3 {[%clk 0:00:26]} 35. gxf3 {[%clk 0:00:28]}  Rd3 {[%clk 0:00:26]} 36. a4 {[%clk 0:00:27]}  Rb3 {[%clk 0:00:17]} 37. b5 {[%clk 0:00:24]}  Rb4 {[%clk 0:00:16]} 38. Ra1 {[%clk 0:00:21]}  Kg7 {[%clk 0:00:15]} 39. Kg2 {[%clk 0:00:22]}  Kf6 {[%clk 0:00:15]} 40. Kh3 {[%clk 0:00:22]}  g5 {[%clk 0:00:15]} 41. fxg5+ {[%clk 0:00:21]}  Kxg5 {[%clk 0:00:16]} 42. Rg1+ {[%clk 0:00:20]}  Kf5 {[%clk 0:00:14]} 43. Rg4 {[%clk 0:00:19]}  Rb3 {[%clk 0:00:13]} 44. Re4 {[%clk 0:00:17]}  e5 {[%clk 0:00:11]} 45. Kxh4 {[%clk 0:00:16]}  Ke6 {[%clk 0:00:12]} 46. f4 {[%clk 0:00:16]}  f6 {[%clk 0:00:11]} 47. Kg3 {[%clk 0:00:11]}  Kd5 {[%clk 0:00:10]} 48. Kf3 {[%clk 0:00:11]}  Ra3 {[%clk 0:00:08]} 49. f5 {[%clk 0:00:07]}  Ra1 {[%clk 0:00:08]} 50. Rh4 {[%clk 0:00:07]}  Rf1+ {[%clk 0:00:07]} 51. Ke2 {[%clk 0:00:07]}  Ra1 {[%clk 0:00:07]} 52. Kd3 {[%clk 0:00:05]}  e4+ {[%clk 0:00:07]} 53. Kd2 {[%clk 0:00:04]}  Rxa4 {[%clk 0:00:07]} 54. Rh7 {[%clk 0:00:04]}  Ra5 {[%clk 0:00:07]} 55. Rb7 {[%clk 0:00:02]}  Ke5 {[%clk 0:00:07]} 56. Kc3 {[%clk 0:00:02]}  Kxf5 {[%clk 0:00:07]} 57. Kd4 {[%clk 0:00:02]}  Ra4+ {[%clk 0:00:07]} 58. Kd5 {[%clk 0:00:03]}  Kg4 {[%clk 0:00:07]} 59. Ke6 {[%clk 0:00:02]}  Kf3 {[%clk 0:00:07]} 60. Kxf6 {[%clk 0:00:02]}  Kxe3 {[%clk 0:00:08]} 61. Ke5 {[%clk 0:00:02]}  Ke2 {[%clk 0:00:05]} 62. b6 {[%clk 0:00:01]}  axb6 {[%clk 0:00:04]} 63. Rxb6 {[%clk 0:00:01]}  e3 {[%clk 0:00:05]} 64. Rb4 {[%clk 0:00:00]}  Rxb4 {[%clk 0:00:04]} 0-1

[Event "December 19 Early 2023"]
[Site "https://www.chess.com"]
[Date "2023.12.19"]
[Round "9"]
[White "Parpiev, Isaak"]
[Black "Hong, Andrew"]
[Result "0-1"]
[Board "41"]
[TimeControl "180+1"]
[WhiteFideId "34281576"]
[BlackFideId "2099438"]
[WhiteElo "2183"]
[BlackElo "2460"]
[WhiteTeam "RUS"]
[BlackTeam "USA"]
[WhiteClock "0:00:11"]
[BlackClock "0:01:43"]

1. e4 {[%clk 0:02:59]}  c6 {[%clk 0:02:58]} 2. d4 {[%clk 0:02:57]}  d5 {[%clk 0:02:58]} 3. e5 {[%clk 0:02:58]}  a6 {[%clk 0:02:41]} 4. Nc3 {[%clk 0:02:57]}  Bf5 {[%clk 0:02:39]} 5. g4 {[%clk 0:02:55]}  Bg6 {[%clk 0:02:39]} 6. h4 {[%clk 0:02:53]}  h5 {[%clk 0:02:38]} 7. e6 {[%clk 0:02:53]}  Nf6 {[%clk 0:02:36]} 8. g5 {[%clk 0:02:47]}  Ne4 {[%clk 0:02:35]} 9. Bf4 {[%clk 0:02:35]}  Qc8 {[%clk 0:02:28]} 10. Bh3 {[%clk 0:02:33]}  fxe6 {[%clk 0:02:27]} 11. Nf3 {[%clk 0:02:32]}  Bf5 {[%clk 0:02:25]} 12. Ne5 {[%clk 0:02:27]}  Nd7 {[%clk 0:02:23]} 13. Nxe4 {[%clk 0:02:19]}  Nxe5 {[%clk 0:02:22]} 14. Ng3 {[%clk 0:02:03]}  Ng6 {[%clk 0:02:15]} 15. Bxf5 {[%clk 0:01:15]}  exf5 {[%clk 0:02:14]} 16. Bd2 {[%clk 0:01:11]}  e5 {[%clk 0:02:12]} 17. dxe5 {[%clk 0:01:08]}  f4 {[%clk 0:02:11]} 18. Nxh5 {[%clk 0:01:06]}  Qf5 {[%clk 0:02:11]} 19. Qf3 {[%clk 0:01:00]}  Bc5 {[%clk 0:02:02]} 20. O-O-O {[%clk 0:00:50]}  O-O {[%clk 0:02:00]} 21. Rde1 {[%clk 0:00:45]}  Rae8 {[%clk 0:01:56]} 22. Qc3 {[%clk 0:00:42]}  Bxf2 {[%clk 0:01:56]} 23. Ref1 {[%clk 0:00:40]}  Ba7 {[%clk 0:01:47]} 24. Nxf4 {[%clk 0:00:32]}  Nxe5 {[%clk 0:01:46]} 25. Re1 {[%clk 0:00:18]}  Nc4 {[%clk 0:01:45]} 26. Nh5 {[%clk 0:00:16]}  Qf7 {[%clk 0:01:43]} 27. g6 {[%clk 0:00:15]}  Qxg6 {[%clk 0:01:43]} 28. Reg1 {[%clk 0:00:11]}  Bxg1 {[%clk 0:01:43]} 0-1

[Event "December 19 Early 2023"]
[Site "https://www.chess.com"]
[Date "2023.12.19"]
[Round "9"]
[White "Matinian, Nikita"]
[Black "Saravana, Krishnan P."]
[Result "0-1"]
[Board "45"]
[TimeControl "180+1"]
[WhiteFideId "24129100"]
[BlackFideId "5018382"]
[WhiteElo "2417"]
[BlackElo "2167"]
[WhiteTeam "FID"]
[BlackTeam "IND"]
[WhiteClock "0:00:42"]
[BlackClock "0:02:03"]

1. e4 {[%clk 0:02:52]}  c6 {[%clk 0:02:59]} 2. Nc3 {[%clk 0:02:51]}  d5 {[%clk 0:02:59]} 3. Nf3 {[%clk 0:02:52]}  dxe4 {[%clk 0:02:59]} 4. Nxe4 {[%clk 0:02:53]}  Nf6 {[%clk 0:02:59]} 5. Qe2 {[%clk 0:02:51]}  Nxe4 {[%clk 0:02:59]} 6. Qxe4 {[%clk 0:02:52]}  Be6 {[%clk 0:03:00]} 7. c4 {[%clk 0:02:50]}  g6 {[%clk 0:02:58]} 8. d4 {[%clk 0:02:42]}  Bg7 {[%clk 0:02:56]} 9. Be2 {[%clk 0:02:42]}  O-O {[%clk 0:02:54]} 10. O-O {[%clk 0:02:42]}  Nd7 {[%clk 0:02:54]} 11. Rd1 {[%clk 0:02:40]}  Qb6 {[%clk 0:02:46]} 12. Qh4 {[%clk 0:02:35]}  Nf6 {[%clk 0:02:41]} 13. b3 {[%clk 0:02:28]}  Bg4 {[%clk 0:02:39]} 14. Bh6 {[%clk 0:02:24]}  Bxf3 {[%clk 0:02:38]} 15. Bxf3 {[%clk 0:02:25]}  Rfd8 {[%clk 0:02:34]} 16. Bxg7 {[%clk 0:02:24]}  Kxg7 {[%clk 0:02:34]} 17. Qf4 {[%clk 0:02:11]}  Rd7 {[%clk 0:02:33]} 18. Rd2 {[%clk 0:02:07]}  Rad8 {[%clk 0:02:32]} 19. Rad1 {[%clk 0:02:08]}  Qa5 {[%clk 0:02:30]} 20. Qe3 {[%clk 0:01:42]}  e6 {[%clk 0:02:30]} 21. h4 {[%clk 0:01:40]}  h5 {[%clk 0:02:26]} 22. g3 {[%clk 0:01:37]}  Qf5 {[%clk 0:02:25]} 23. Kg2 {[%clk 0:01:37]}  a5 {[%clk 0:02:19]} 24. a3 {[%clk 0:01:23]}  a4 {[%clk 0:02:17]} 25. b4 {[%clk 0:01:23]}  Ng4 {[%clk 0:02:16]} 26. Bxg4 {[%clk 0:01:23]}  hxg4 {[%clk 0:02:14]} 27. f4 {[%clk 0:00:58]}  b5 {[%clk 0:02:06]} 28. Rc1 {[%clk 0:00:45]}  bxc4 {[%clk 0:02:04]} 29. Rxc4 {[%clk 0:00:42]}  Qd5+ {[%clk 0:02:03]} 0-1

[Event "December 19 Early 2023"]
[Site "https://www.chess.com"]
[Date "2023.12.19"]
[Round "9"]
[White "Yeritsyan, Hayk"]
[Black "Farahat, Ali"]
[Result "1-0"]
[Board "52"]
[TimeControl "180+1"]
[WhiteFideId "13307320"]
[BlackFideId "10600507"]
[WhiteElo "2130"]
[BlackElo "2254"]
[WhiteTeam "ARM"]
[BlackTeam "USA"]
[WhiteClock "0:00:07"]
[BlackClock "0:00:00"]

1. d4 {[%clk 0:02:47]}  d5 {[%clk 0:03:00]} 2. Nf3 {[%clk 0:02:45]}  Nf6 {[%clk 0:02:59]} 3. Bf4 {[%clk 0:02:46]}  c5 {[%clk 0:02:59]} 4. e3 {[%clk 0:02:46]}  Nc6 {[%clk 0:02:59]} 5. Nbd2 {[%clk 0:02:44]}  g6 {[%clk 0:02:59]} 6. h3 {[%clk 0:02:43]}  Bg7 {[%clk 0:02:51]} 7. c3 {[%clk 0:02:43]}  O-O {[%clk 0:02:48]} 8. Be2 {[%clk 0:02:42]}  b6 {[%clk 0:02:47]} 9. O-O {[%clk 0:02:41]}  Bb7 {[%clk 0:02:48]} 10. a4 {[%clk 0:02:40]}  Ne4 {[%clk 0:02:44]} 11. Nxe4 {[%clk 0:02:39]}  dxe4 {[%clk 0:02:44]} 12. Nd2 {[%clk 0:02:40]}  cxd4 {[%clk 0:02:44]} 13. cxd4 {[%clk 0:02:38]}  e5 {[%clk 0:02:44]} 14. dxe5 {[%clk 0:02:37]}  Nxe5 {[%clk 0:02:44]} 15. Nc4 {[%clk 0:02:34]}  Nd3 {[%clk 0:02:40]} 16. Bxd3 {[%clk 0:02:03]}  Qxd3 {[%clk 0:02:41]} 17. Qxd3 {[%clk 0:01:55]}  exd3 {[%clk 0:02:42]} 18. Rfd1 {[%clk 0:01:53]}  Ba6 {[%clk 0:02:34]} 19. Ne5 {[%clk 0:01:53]}  Rfd8 {[%clk 0:02:00]} 20. b4 {[%clk 0:01:52]}  Rd5 {[%clk 0:01:51]} 21. Nc6 {[%clk 0:01:48]}  Re8 {[%clk 0:01:41]} 22. Ra3 {[%clk 0:01:31]}  d2 {[%clk 0:01:40]} 23. b5 {[%clk 0:01:17]}  Bc8 {[%clk 0:01:37]} 24. Ra2 {[%clk 0:01:07]}  g5 {[%clk 0:01:33]} 25. Bg3 {[%clk 0:01:02]}  Bc3 {[%clk 0:01:28]} 26. Rc2 {[%clk 0:01:03]}  Rd3 {[%clk 0:01:28]} 27. Rxc3 {[%clk 0:00:41]}  Rxc3 {[%clk 0:01:27]} 28. Rxd2 {[%clk 0:00:42]}  a6 {[%clk 0:01:20]} 29. Bd6 {[%clk 0:00:27]}  axb5 {[%clk 0:01:18]} 30. axb5 {[%clk 0:00:28]}  h6 {[%clk 0:01:03]} 31. h4 {[%clk 0:00:20]}  gxh4 {[%clk 0:01:02]} 32. Rd4 {[%clk 0:00:19]}  Kh7 {[%clk 0:01:02]} 33. Rxh4 {[%clk 0:00:18]}  Bd7 {[%clk 0:01:00]} 34. Ne5 {[%clk 0:00:12]}  Re6 {[%clk 0:00:52]} 35. Bb8 {[%clk 0:00:13]}  Bxb5 {[%clk 0:00:47]} 36. Nxf7 {[%clk 0:00:13]}  Bd3 {[%clk 0:00:42]} 37. Bf4 {[%clk 0:00:13]}  Rc1+ {[%clk 0:00:39]} 38. Kh2 {[%clk 0:00:13]}  Kg6 {[%clk 0:00:39]} 39. Ne5+ {[%clk 0:00:11]}  Rxe5 {[%clk 0:00:38]} 40. Bxe5 {[%clk 0:00:12]}  h5 {[%clk 0:00:36]} 41. Rd4 {[%clk 0:00:12]}  Bc4 {[%clk 0:00:34]} 42. Rd6+ {[%clk 0:00:12]}  Kf5 {[%clk 0:00:34]} 43. Bb2 {[%clk 0:00:11]}  Rc2 {[%clk 0:00:32]} 44. Rxb6 {[%clk 0:00:07]}  Rxf2 {[%clk 0:00:00]} 45. Rf6+ {[%clk 0:00:07]} 1-0

[Event "December 19 Early 2023"]
[Site "https://www.chess.com"]
[Date "2023.12.19"]
[Round "9"]
[White "Thorfinnsson, Bjorn"]
[Black "Andreev, Konstantin"]
[Result "1-0"]
[Board "53"]
[TimeControl "180+1"]
[WhiteFideId "2300982"]
[BlackFideId "24239305"]
[WhiteElo "2394"]
[BlackElo "2093"]
[WhiteTeam "ISL"]
[BlackTeam "ITA"]
[WhiteClock "0:01:53"]
[BlackClock "0:01:46"]

1. d4 {[%clk 0:02:44]}  Nf6 {[%clk 0:02:59]} 2. Nf3 {[%clk 0:02:44]}  d5 {[%clk 0:02:57]} 3. Bg5 {[%clk 0:02:44]}  Ne4 {[%clk 0:02:57]} 4. e3 {[%clk 0:02:44]}  Nxg5 {[%clk 0:02:56]} 5. Nxg5 {[%clk 0:02:45]}  Bf5 {[%clk 0:02:54]} 6. f4 {[%clk 0:02:45]}  f6 {[%clk 0:02:51]} 7. Nf3 {[%clk 0:02:44]}  e6 {[%clk 0:02:51]} 8. Bd3 {[%clk 0:02:43]}  Bxd3 {[%clk 0:02:50]} 9. Qxd3 {[%clk 0:02:43]}  c5 {[%clk 0:02:50]} 10. c3 {[%clk 0:02:42]}  Nc6 {[%clk 0:02:49]} 11. Nbd2 {[%clk 0:02:43]}  Bd6 {[%clk 0:02:48]} 12. g4 {[%clk 0:02:39]}  O-O {[%clk 0:02:47]} 13. g5 {[%clk 0:02:39]}  cxd4 {[%clk 0:02:29]} 14. cxd4 {[%clk 0:02:31]}  Rc8 {[%clk 0:02:28]} 15. a3 {[%clk 0:02:31]}  Qa5 {[%clk 0:02:25]} 16. O-O {[%clk 0:02:27]}  Kh8 {[%clk 0:02:16]} 17. gxf6 {[%clk 0:02:23]}  gxf6 {[%clk 0:02:16]} 18. Kh1 {[%clk 0:02:21]}  e5 {[%clk 0:02:04]} 19. dxe5 {[%clk 0:02:16]}  fxe5 {[%clk 0:02:04]} 20. Ng5 {[%clk 0:02:16]}  e4 {[%clk 0:02:03]} 21. Qe2 {[%clk 0:02:01]}  Be7 {[%clk 0:02:01]} 22. Nxh7 {[%clk 0:01:57]}  Kxh7 {[%clk 0:01:51]} 23. Qh5+ {[%clk 0:01:53]}  Kg7 {[%clk 0:01:46]} 24. Rg1+ {[%clk 0:01:53]} 1-0

[Event "December 19 Early 2023"]
[Site "https://www.chess.com"]
[Date "2023.12.19"]
[Round "9"]
[White "Khumalo, Keith"]
[Black "Estrada Nieto, Julian"]
[Result "1-0"]
[Board "54"]
[TimeControl "180+1"]
[WhiteFideId "14319470"]
[BlackFideId "5101018"]
[WhiteElo "2093"]
[BlackElo "2161"]
[WhiteTeam "RSA"]
[BlackTeam "ESP"]
[WhiteClock "0:02:10"]
[BlackClock "0:00:56"]

1. d4 {[%clk 0:03:00]}  d5 {[%clk 0:02:59]} 2. Nc3 {[%clk 0:02:59]}  Nf6 {[%clk 0:02:57]} 3. Bf4 {[%clk 0:03:00]}  c6 {[%clk 0:02:57]} 4. e3 {[%clk 0:03:00]}  Bf5 {[%clk 0:02:57]} 5. Nf3 {[%clk 0:02:59]}  e6 {[%clk 0:02:55]} 6. Ne5 {[%clk 0:02:59]}  Nbd7 {[%clk 0:02:55]} 7. g4 {[%clk 0:03:00]}  Bg6 {[%clk 0:02:47]} 8. h4 {[%clk 0:03:00]}  h6 {[%clk 0:02:38]} 9. Nxg6 {[%clk 0:02:58]}  fxg6 {[%clk 0:02:38]} 10. Bd3 {[%clk 0:02:58]}  Kf7 {[%clk 0:02:36]} 11. Qf3 {[%clk 0:02:58]}  Qe8 {[%clk 0:02:18]} 12. g5 {[%clk 0:02:34]}  hxg5 {[%clk 0:02:03]} 13. hxg5 {[%clk 0:02:35]}  Rxh1+ {[%clk 0:02:03]} 14. Qxh1 {[%clk 0:02:36]}  Nh5 {[%clk 0:02:03]} 15. O-O-O {[%clk 0:02:29]}  e5 {[%clk 0:01:53]} 16. dxe5 {[%clk 0:02:28]}  Nxe5 {[%clk 0:01:53]} 17. Be2 {[%clk 0:02:29]}  Nxf4 {[%clk 0:01:43]} 18. exf4 {[%clk 0:02:30]}  Nd7 {[%clk 0:01:40]} 19. Qh7 {[%clk 0:02:21]}  Bd6 {[%clk 0:01:33]} 20. f5 {[%clk 0:02:14]}  gxf5 {[%clk 0:01:10]} 21. Bh5+ {[%clk 0:02:12]}  Kf8 {[%clk 0:01:08]} 22. Qh8+ {[%clk 0:02:11]}  Ke7 {[%clk 0:01:08]} 23. Re1+ {[%clk 0:02:10]}  Ne5 {[%clk 0:00:56]} 24. Qxg7+ {[%clk 0:02:10]} 1-0